Workbook

Sheet Sheet1
C2: Inputs
B3: Loan interest rate | C3: 5%
B4: HISA rate | C4: 5%
B5: Investment income | C5: 3%
B6: Investment growth | C6: 7%
E8: Stocks (selling at MTR:) | H8: Stocks with debt recycling (selling at MTR:)
C9: HISA | D9: Offset | E9: 32% | F9: 18% | G9: 0% | H9: 32% | I9: 18% | J9: 0%
A10: 32% | B10: ="After tax at " & (A10*100) &"%:" -> After tax at 32%: | C10: =HISAInterestRate*(1-A10) -> 3.4% | D10: =LoanInterestRate -> 5% | E10: =InvestmentIncome * (1-$A10) + InvestmentGrowth * (1-(E$9 * 50%)) -> 7.9% | F10: =InvestmentIncome * (1-$A10) + InvestmentGrowth * (1-(F$9 * 50%)) -> 8.4% | G10: =InvestmentIncome * (1-$A10) + InvestmentGrowth * (1-(G$9 * 50%)) -> 9.0% | H10: =E10 + (LoanInterestRate * $A10) -> 9.5% | I10: =F10 + (LoanInterestRate * $A10) -> 10.0% | J10: =G10 + (LoanInterestRate * $A10) -> 10.6%
A11: 39% | B11: ="After tax at " & (A11*100) &"%:" -> After tax at 39%: | C11: =HISAInterestRate*(1-A11) -> 3.1% | D11: =LoanInterestRate -> 5% | E11: =InvestmentIncome * (1-$A11) + InvestmentGrowth * (1-(E$9 * 50%)) -> 7.7% | F11: =InvestmentIncome * (1-$A11) + InvestmentGrowth * (1-(F$9 * 50%)) -> 8.2% | G11: =InvestmentIncome * (1-$A11) + InvestmentGrowth * (1-(G$9 * 50%)) -> 8.8% | H11: =E11 + (LoanInterestRate * $A11) -> 9.7% | I11: =F11 + (LoanInterestRate * $A11) -> 10.2% | J11: =G11 + (LoanInterestRate * $A11) -> 10.8%
A12: 47% | B12: After tax at 47%: | C12: =HISAInterestRate*(1-A12) -> 2.7% | D12: =LoanInterestRate -> 5% | E12: =InvestmentIncome * (1-$A12) + InvestmentGrowth * (1-(E$9 * 50%)) -> 7.5% | F12: =InvestmentIncome * (1-$A12) + InvestmentGrowth * (1-(F$9 * 50%)) -> 8.0% | G12: =InvestmentIncome * (1-$A12) + InvestmentGrowth * (1-(G$9 * 50%)) -> 8.6% | H12: =E12 + (LoanInterestRate * $A12) -> 9.8% | I12: =F12 + (LoanInterestRate * $A12) -> 10.3% | J12: =G12 + (LoanInterestRate * $A12) -> 10.9%
